bitfinex/quotes_BTCUSD_20251124
["timestamp","ask_amount","ask_price","bid_price","bid_amount"]
[1763944744821,0.323,86979.0,86974.0,0.00039416]
[1763944745028,0.33742827,86979.0,86974.0,0.00039416]
[1763944746041,0.01442827,86979.0,86978.0,0.0276]
[1763944746245,0.323,86989.0,86978.0,0.0276]
[1763944746424,0.323,86989.0,86988.0,0.04769]
[1763944746653,0.323,86989.0,86974.0,0.00039416]
[1763944747009,0.323,86982.0,86974.0,0.00039416]
[1763944747208,0.323,86982.0,86976.0,0.00984396]
[1763944747408,0.323,86982.0,86981.0,0.03744396]
[1763944747858,0.323,86989.0,86981.0,0.07782396]
[1763944748294,0.323,86984.0,86974.0,0.00039416]
[1763944748498,0.66873756,86984.0,86974.0,0.00039416]
[1763944748704,0.66873756,86984.0,86981.0,0.001]
[1763944748915,0.323,86984.0,86981.0,0.001]
[1763944749127,0.323,86984.0,86974.0,0.00039416]
[1763944749752,0.33449663,86982.0,86974.0,0.00039416]
[1763944749956,0.00034672,86975.0,86974.0,0.00039416]
[1763944750368,0.00034672,86975.0,86974.0,0.06837416]
[1763944751306,0.00034672,86975.0,86974.0,0.07821812]
[1763944751709,0.00034672,86975.0,86974.0,0.07921812]
[1763944752538,0.00034672,86975.0,86974.0,0.07821812]
[1763944752739,0.00034672,86975.0,86974.0,0.07921812]
[1763944753239,10.0002,87000.0,86999.0,0.00984396]
[1763944753454,10.0002,87000.0,86999.0,0.05753396]
[1763944753654,10.3232,87000.0,86999.0,0.09791396]
[1763944754475,10.0002,87000.0,86999.0,0.09791396]
[1763944755979,10.0002,87000.0,86999.0,0.09891396]
[1763944756538,9.99981,87000.0,86999.0,0.09891396]
[1763944757717,9.99981,87000.0,86999.0,0.09791396]
[1763944758011,9.68247973,87000.0,86999.0,2.42998412]
[1763944758343,9.62921572,87000.0,86999.0,2.42998412]
[1763944758634,9.59466545,87000.0,86999.0,2.82291396]
[1763944758834,9.59545318,87000.0,86999.0,2.82823396]
[1763944759083,9.59545318,87000.0,86999.0,2.82091396]
[1763944759292,9.56090291,87000.0,86999.0,2.83123396]
[1763944759413,9.51804265,87000.0,86999.0,2.84030412]
[1763944759615,9.48076702,87000.0,86999.0,2.84030412]
[1763944759813,9.44557246,87000.0,86999.0,2.84030412]
[1763944760169,9.44557246,87000.0,86999.0,3.07019181]
[1763944760317,9.41104523,87000.0,86999.0,3.07019181]
[1763944760520,9.41104523,87000.0,86999.0,3.06719181]
[1763944760736,9.41104523,87000.0,86999.0,3.07119181]
[1763944761180,9.41104523,87000.0,86999.0,3.06719181]
[1763944761393,9.41104523,87000.0,86999.0,3.07119181]
[1763944763624,9.41104523,87000.0,86999.0,3.06719181]
[1763944763826,9.41104523,87000.0,86999.0,3.07119181]
[1763944764254,9.41104523,87000.0,86999.0,2.98038412]
[1763944764454,9.41104523,87000.0,86999.0,2.98770412]
[1763944766561,9.376518,87000.0,86999.0,2.98770412]
[1763944766990,9.376518,87000.0,86999.0,2.83398412]
[1763944767191,9.376518,87000.0,86999.0,2.83223396]
[1763944767393,9.376518,87000.0,86999.0,2.84130412]
[1763944767597,9.16873425,87000.0,86999.0,2.84130412]
[1763944768150,9.16873425,87000.0,86999.0,2.83730412]
[1763944768295,9.16873425,87000.0,86999.0,2.82091396]
[1763944768478,9.16873425,87000.0,86999.0,2.83223396]
[1763944769290,9.16873425,87000.0,86999.0,2.84130412]
[1763944769700,9.16873425,87000.0,86999.0,2.83730412]
[1763944770142,9.16873425,87000.0,86999.0,2.84130412]
[1763944770346,9.16873425,87000.0,86999.0,2.83730412]
[1763944770584,9.16873425,87000.0,86999.0,2.50523396]
[1763944770762,9.16873425,87000.0,86999.0,0.50923396]
[1763944770986,9.16873425,87000.0,86999.0,0.50523396]
[1763944771374,9.16873425,87000.0,86999.0,0.50191396]
[1763944771587,9.16873425,87000.0,86999.0,0.50523396]
[1763944771992,9.16873425,87000.0,86999.0,0.49791396]
[1763944772200,9.16873425,87000.0,86999.0,0.50523396]
[1763944772631,9.16873425,87000.0,86999.0,0.49791396]
[1763944772833,9.16873425,87000.0,86999.0,0.50523396]
[1763944773041,9.16873425,87000.0,86999.0,0.50723396]
[1763944773511,9.16873425,87000.0,86999.0,0.50523396]
[1763944773915,9.16873425,87000.0,86999.0,0.10523396]
[1763944774179,9.16873425,87000.0,86999.0,2.10523396]
[1763944774379,9.16873425,87000.0,86999.0,0.50523396]
[1763944774584,9.16873425,87000.0,86999.0,0.50723396]
[1763944774796,9.16873425,87000.0,86999.0,0.49991396]
[1763944774998,9.16873425,87000.0,86999.0,0.50523396]
[1763944775173,9.16873425,87000.0,86999.0,2.50523396]
[1763944775376,9.16873425,87000.0,86999.0,2.51430412]
[1763944775735,9.16873425,87000.0,86999.0,2.83730412]
[1763944776166,9.16873425,87000.0,86999.0,2.98370412]
[1763944776338,9.16873425,87000.0,86999.0,2.98670412]
[1763944776562,9.16873425,87000.0,86999.0,2.98370412]
[1763944776931,9.16873425,87000.0,86999.0,2.98770412]
[1763944777540,9.15002293,87000.0,86999.0,2.98770412]
[1763944778961,8.7154898,87000.0,86999.0,2.9865338]
[1763944779134,6.12888094,87000.0,86999.0,3.00640346]
[1763944779353,6.09434781,87000.0,86999.0,2.84130412]
[1763944779550,6.05982275,87000.0,86999.0,2.83730412]
[1763944779754,6.02529769,87000.0,86999.0,2.82998412]
[1763944779959,5.99077263,87000.0,86999.0,2.84130412]
[1763944780322,5.95624757,87000.0,86999.0,2.83730412]
[1763944780453,5.1755947,87000.0,86999.0,2.83730412]
[1763944780654,4.4393994,87000.0,86999.0,2.84230412]
[1763944780860,4.40487434,87000.0,86999.0,2.51198412]
[1763944781204,4.40487434,87000.0,86999.0,2.51930412]
[1763944781343,4.40487434,87000.0,86999.0,2.84230412]
[1763944782223,4.40487434,87000.0,86999.0,2.82591396]
[1763944782435,4.40487434,87000.0,86999.0,2.83323396]
[1763944782992,4.40487434,87000.0,86999.0,2.83730412]
[1763944783128,4.40487434,87000.0,86999.0,2.84030412]
[1763944783640,4.40487434,87000.0,86999.0,2.83730412]
[1763944783844,4.40487434,87000.0,86999.0,2.84030412]
[1763944784041,4.40487434,87000.0,86999.0,2.82998412]
[1763944784250,4.40487434,87000.0,86999.0,2.83730412]
[1763944784443,4.40487434,87000.0,86999.0,2.84030412]
[1763944785438,4.40487434,87000.0,86999.0,2.83298412]
[1763944785649,4.40487434,87000.0,86999.0,3.05380165]
[1763944785854,4.40487434,87000.0,86999.0,3.05812165]
[1763944786228,4.40487434,87000.0,86999.0,3.06112165]
[1763944786429,4.40487434,87000.0,86999.0,3.05080165]
[1763944786671,4.26187027,87000.0,86999.0,3.05812165]
[1763944786886,4.26187027,87000.0,86999.0,2.83123396]
[1763944787088,4.26187027,87000.0,86999.0,2.82823396]
[1763944787419,4.26187027,87000.0,86999.0,2.84030412]
[1763944787594,4.24315826,87000.0,86999.0,2.84030412]
[1763944787952,4.24315826,87000.0,86999.0,2.83298412]
[1763944788169,4.24315826,87000.0,86999.0,2.82391396]
[1763944788376,4.24315826,87000.0,86999.0,2.83123396]
[1763944788826,4.24315826,87000.0,86999.0,2.83730412]
[1763944789226,4.24315826,87000.0,86999.0,2.84030412]
[1763944789428,4.24315826,87000.0,86999.0,2.83730412]
[1763944789790,4.24315826,87000.0,86999.0,2.84030412]
[1763944789988,4.24315826,87000.0,86999.0,2.83730412]
[1763944790191,4.24315826,87000.0,86999.0,2.84030412]
[1763944790618,4.21696398,87000.0,86999.0,2.84030412]
[1763944790832,3.6636792,87000.0,86999.0,2.83298412]
[1763944791076,3.6291475,87000.0,86999.0,2.84030412]
[1763944791284,3.5946158,87000.0,86999.0,2.84030412]
[1763944791488,3.5946158,87000.0,86999.0,2.83298412]
[1763944791697,3.1600841,87000.0,86999.0,2.84030412]
[1763944791912,3.1600841,87000.0,86999.0,3.13108509]
[1763944791913,2.27751117,87000.0,86999.0,3.13108509]
[1763944792109,2.24297947,87000.0,86999.0,3.13108509]
[1763944792314,2.20844777,87000.0,86999.0,2.98370412]
[1763944792733,2.17392015,87000.0,86999.0,2.98770412]
[1763944792933,2.13939253,87000.0,86999.0,2.98770412]
[1763944793110,2.10486491,87000.0,86999.0,2.98770412]
[1763944793402,2.03580967,87000.0,86999.0,2.98770412]
[1763944793600,2.00128205,87000.0,86999.0,2.98770412]
[1763944793802,1.96675443,87000.0,86999.0,2.98770412]
[1763944794821,1.32885826,87000.0,86999.0,2.98770412]
[1763944795611,1.32885826,87000.0,86999.0,2.84130412]
[1763944796219,1.32885826,87000.0,86999.0,2.96340412]
[1763944796422,1.32885826,87000.0,86999.0,2.83398412]
[1763944796559,1.32885826,87000.0,86999.0,2.84130412]
[1763944796939,1.32885826,87000.0,86999.0,2.51830412]
[1763944797142,1.32885826,87000.0,86999.0,2.84130412]
[1763944797783,1.32885826,87000.0,86999.0,2.83398412]
[1763944797955,1.32885826,87000.0,86999.0,2.84130412]
[1763944798341,1.32885826,87000.0,86999.0,2.82091396]
[1763944798540,1.32885826,87000.0,86999.0,0.50523396]
[1763944798764,1.32885826,87000.0,86999.0,2.50823396]
[1763944798954,1.32885826,87000.0,86999.0,0.50823396]
[1763944799554,1.32885826,87000.0,86999.0,2.51730412]
[1763944799961,1.32885826,87000.0,86999.0,2.50523396]
[1763944800506,1.32885826,87000.0,86999.0,2.50823396]
[1763944800793,1.30586976,87000.0,86999.0,2.84030412]
[1763944801596,1.30586976,87000.0,86999.0,2.83730412]
[1763944802061,1.2871586,87000.0,86999.0,2.98670412]
[1763944802268,1.2059489,87000.0,86999.0,2.98370412]
[1763944802687,1.2059489,87000.0,86999.0,2.98770412]
[1763944802905,1.2059489,87000.0,86999.0,2.97638412]
[1763944803117,1.2059489,87000.0,86999.0,2.98370412]
[1763944803336,1.2059489,87000.0,86999.0,2.98770412]
[1763944803558,1.2059489,87000.0,86999.0,2.98370412]
[1763944804142,1.2059489,87000.0,86999.0,3.12808509]
[1763944804378,1.2059489,87000.0,86999.0,2.97436509]
[1763944804828,1.17975392,87000.0,86999.0,2.65261493]
[1763944805065,1.17975392,87000.0,86999.0,2.50523396]
[1763944805582,1.17975392,87000.0,86999.0,2.50823396]
[1763944805834,1.17975392,87000.0,86999.0,2.50523396]
[1763944806072,1.17975392,87000.0,86999.0,2.50823396]
[1763944806278,1.17975392,87000.0,86999.0,2.51730412]
[1763944806505,1.17975392,87000.0,86999.0,2.50091396]
[1763944806712,1.17975392,87000.0,86999.0,0.50823396]
[1763944807833,1.17975392,87000.0,86999.0,0.50091396]
[1763944808038,1.17975392,87000.0,86999.0,0.50823396]
[1763944810053,1.17975392,87000.0,86999.0,2.50823396]
[1763944810276,1.14521201,87000.0,86999.0,2.83123396]
[1763944810478,1.1106701,87000.0,86999.0,2.84030412]
[1763944810678,1.07612819,87000.0,86999.0,2.84030412]
[1763944811015,1.00704437,87000.0,86999.0,2.84030412]
[1763944811218,0.97250246,87000.0,86999.0,2.84030412]
[1763944811494,0.93796055,87000.0,86999.0,2.84030412]
[1763944811695,0.90341864,87000.0,86999.0,2.84030412]
[1763944811870,0.86887673,87000.0,86999.0,2.84030412]
[1763944812073,0.81562284,87000.0,86999.0,2.84030412]
[1763944812369,0.7810915,87000.0,86999.0,0.82091396]
[1763944812498,0.7810915,87000.0,86999.0,0.50523396]
[1763944812696,0.7810915,87000.0,86999.0,0.50823396]
[1763944814353,0.7810915,87000.0,86999.0,0.50523396]
[1763944814557,0.7810915,87000.0,86999.0,2.50823396]
[1763944814758,0.7810915,87000.0,86999.0,2.84030412]
[1763944814976,0.75489434,87000.0,86999.0,2.84030412]
[1763944815275,0.63571773,87000.0,86999.0,2.84030412]
[1763944815475,0.59972209,87000.0,86999.0,2.84030412]
[1763944815879,0.59972209,87000.0,86999.0,2.83730412]
[1763944816292,0.59972209,87000.0,86999.0,2.84130412]
[1763944817359,0.59972209,87000.0,86999.0,2.83730412]
[1763944817766,0.59972209,87000.0,86999.0,2.84030412]
[1763944818179,0.57691515,87000.0,86999.0,2.84030412]
[1763944818390,0.47623281,87000.0,86999.0,2.84030412]
[1763944818593,0.0002,87040.0,86999.0,2.84030412]
[1763944818594,0.0002,87040.0,87039.0,0.22978205]
[1763944818818,0.0002,87040.0,87039.0,0.24694601]
[1763944819036,0.0002,87040.0,87039.0,2.24694601]
[1763944819416,0.0002,87040.0,87039.0,2.64694601]
[1763944819800,0.01827714,87086.0,87050.0,0.49898752]
[1763944820040,0.01827714,87086.0,87085.0,0.00984396]
[1763944820236,0.01827714,87086.0,87040.0,0.00999999]
[1763944820237,0.03440714,87087.0,87063.0,0.00732]
[1763944820440,0.01827714,87086.0,87082.0,0.00984396]
[1763944820800,0.04971,87083.0,87082.0,0.00984396]
[1763944821206,0.12127,87083.0,87082.0,0.01023812]
[1763944821411,0.12127,87083.0,87048.0,0.01]
[1763944821412,0.01148474,87072.0,87048.0,0.01]
[1763944821636,0.08405,87049.0,87048.0,0.01039479]
[1763944821807,0.03434,87049.0,87048.0,0.01039479]
[1763944822011,0.0844888,87080.0,87048.0,0.00039479]
[1763944822214,0.0844888,87080.0,87078.0,0.01]
[1763944822418,0.0844888,87080.0,87079.0,0.01]
[1763944822825,0.323,87086.0,87085.0,0.01]
[1763944823448,0.02062,87087.0,87085.0,0.01039479]
[1763944823708,0.02062,87087.0,87086.0,0.01]
[1763944824060,0.07033,87087.0,87085.0,0.00039479]
[1763944824259,0.12127,87086.0,87085.0,0.01039479]
[1763944824627,0.14225384,87086.0,87085.0,0.01039479]
[1763944826707,0.14225384,87086.0,87085.0,0.00039479]
[1763944826960,0.04971,87086.0,87085.0,0.00039479]
[1763944827356,0.08405,87088.0,87087.0,0.00980007]
[1763944827595,0.03434,87088.0,87087.0,0.00980007]
[1763944827820,0.03434,87089.0,87087.0,0.00980007]
[1763944828021,0.04971,87088.0,87087.0,0.00980007]
[1763944829023,0.44427,87088.0,87087.0,0.00980007]
[1763944829967,0.37271,87088.0,87087.0,0.00980007]
[1763944830161,0.44427,87088.0,87087.0,0.00980007]
[1763944830537,0.323,87088.0,87087.0,0.00980007]
[1763944831337,0.01802224,87107.0,87087.0,0.12573]
[1763944831546,0.48898753,87110.0,87109.0,0.00980007]
[1763944831756,0.03434,87115.0,87114.0,0.00980007]
[1763944831954,0.35734,87115.0,87114.0,0.00980007]
[1763944832359,0.03434,87122.0,87106.0,0.03456]
[1763944832603,0.03434,87126.0,87121.0,0.00980007]
[1763944832807,0.03434,87126.0,87122.0,0.00980007]
[1763944832984,0.04971,87123.0,87122.0,0.00980007]
[1763944833187,0.323,87124.0,87122.0,0.00980007]
[1763944833566,0.323,87124.0,87123.0,0.00980007]
[1763944833724,0.37115,87124.0,87123.0,0.00980007]
[1763944834046,0.4428,87124.0,87123.0,0.00980007]
[1763944834722,0.4428,87124.0,87121.0,0.00039479]
[1763944834924,0.36325,87122.0,87121.0,0.00039479]
[1763944835390,2.4349,87122.0,87121.0,0.00039479]
[1763944835586,0.4349,87122.0,87121.0,0.00039479]
[1763944836196,0.03117456,87125.0,87124.0,0.00980007]
[1763944836197,0.01801791,87125.0,87124.0,0.00980007]
[1763944837509,0.01801791,87125.0,87124.0,0.13522007]
[1763944837728,0.01801791,87125.0,87124.0,0.06160007]
[1763944837910,0.01801791,87125.0,87124.0,0.13522007]
[1763944839802,0.48898753,87140.0,87124.0,0.12542]
[1763944840014,0.48898753,87140.0,87139.0,0.00980007]
[1763944840217,0.01322123,87145.0,87144.0,0.00980007]
[1763944840583,0.00185476,87145.0,87125.0,0.07362]
[1763944840792,0.34102,87148.0,87144.0,0.00980007]
[1763944841015,0.01147578,87140.0,87121.0,0.00039479]
[1763944841187,2.0,87146.0,87136.0,0.00980007]
[1763944841393,0.08445,87137.0,87136.0,0.00980007]
[1763944841811,0.323,87136.0,87134.0,0.00980007]
[1763944842017,0.03633,87135.0,87134.0,0.00980007]
[1763944842219,0.43098,87135.0,87134.0,0.00980007]
[1763944842752,0.43098,87135.0,87121.0,0.00039479]
[1763944842966,0.323,87130.0,87121.0,0.00039479]
[1763944843136,0.07165,87129.0,87124.0,0.00980007]
[1763944843541,0.04935,87125.0,87124.0,0.00980007]
[1763944843949,0.44175,87125.0,87124.0,0.00980007]
[1763944845971,0.323,87124.0,87121.0,0.00039479]
[1763944846174,0.19190142,87124.0,87123.0,0.00980007]
[1763944846431,0.48898753,87131.0,87124.0,0.00980007]
[1763944846618,0.04935,87122.0,87121.0,0.01019486]
[1763944847019,0.11875,87122.0,87121.0,0.01019486]
[1763944848952,0.11875,87122.0,87121.0,0.00039479]
[1763944848953,0.44175,87122.0,87121.0,0.00039479]
[1763944849237,2.55986186,87122.0,87121.0,0.00039479]
[1763944849448,2.58127583,87122.0,87121.0,0.00039479]
[1763944849652,0.01148039,87105.0,87074.0,0.07453]
[1763944849840,0.323,87099.0,87097.0,0.00980007]
[1763944850188,0.47954,87098.0,87097.0,0.00980007]
[1763944850831,0.47954,87098.0,87077.0,0.02004494]
[1763944850832,0.323,87097.0,87091.0,0.00980007]
[1763944851031,0.323,87097.0,87085.0,0.00980007]
[1763944851032,0.03788,87092.0,87085.0,0.00980007]
[1763944851428,0.08723,87086.0,87085.0,0.00980007]
[1763944853773,0.47963,87086.0,87085.0,0.00980007]
[1763944854402,0.0694,87126.0,87085.0,0.1235]
[1763944854647,0.03788,87136.0,87120.0,0.07432]
[1763944854850,0.03788,87136.0,87135.0,0.00980007]
[1763944855455,0.47963,87136.0,87135.0,0.00980007]
[1763944855793,0.36088,87136.0,87135.0,0.01019501]
[1763944856190,0.47963,87136.0,87135.0,0.00039494]
[1763944856852,0.49764415,87136.0,87135.0,0.00039494]
[1763944856994,0.42824415,87136.0,87135.0,0.01019501]
[1763944857198,0.37889415,87136.0,87135.0,0.01019501]
[1763944857384,0.34101415,87136.0,87135.0,0.01019501]
[1763944858205,0.34101415,87136.0,87135.0,0.05916501]
[1763944858206,0.01801415,87136.0,87135.0,0.05916501]
[1763944858407,0.01801415,87136.0,87135.0,0.13369501]
[1763944858943,0.01801415,87136.0,87135.0,0.05916501]
[1763944859662,0.01801415,87136.0,87135.0,0.01019501]
[1763944860044,0.01958615,87136.0,87135.0,0.05916501]
[1763944860249,0.01958615,87136.0,87135.0,0.13369501]
[1763944861072,0.01958615,87136.0,87135.0,0.01019501]
[1763944862640,0.01958615,87136.0,87135.0,0.00943992]
[1763944862844,0.01958615,87136.0,87135.0,0.05840992]
[1763944863046,0.05113401,87152.0,87135.0,0.04897]
[1763944863265,0.05113401,87152.0,87150.0,0.00943992]
[1763944863468,2.0,87167.0,87159.0,0.00943992]
[1763944863626,2.0,87161.0,87156.0,0.00943992]
[1763944863831,2.0,87159.0,87156.0,0.00943992]
[1763944864055,0.04792,87157.0,87156.0,0.00943992]
[1763944864248,0.06934582,87157.0,87129.0,0.07412]
[1763944864564,0.00039548,87157.0,87156.0,0.00943992]
[1763944864772,0.00039548,87157.0,87156.0,0.04556992]
[1763944865596,0.00039548,87157.0,87156.0,0.00943992]
[1763944866868,0.00267548,87157.0,87156.0,0.00943992]
[1763944867070,0.00267548,87157.0,87151.0,0.00943992]
[1763944867071,0.07654548,87157.0,87151.0,0.00943992]
[1763944867500,0.00267548,87157.0,87139.0,0.03613]
[1763944867709,0.00267548,87157.0,87156.0,0.00943992]
[1763944868316,0.07654548,87157.0,87156.0,0.00943992]
[1763944868691,0.07654548,87157.0,87139.0,0.03613]
[1763944868899,0.00267548,87157.0,87151.0,0.00943992]
[1763944869123,0.00039548,87157.0,87156.0,0.00943992]
[1763944869536,0.41173902,87157.0,87151.0,0.00943992]
[1763944869856,0.00228,87152.0,87151.0,0.005]
[1763944870057,0.0137542,87152.0,87147.0,0.00973242]
[1763944870220,0.0876242,87152.0,87147.0,0.00973242]
[1763944870440,0.00299,87148.0,87147.0,0.00973242]
[1763944870846,0.07615,87148.0,87147.0,0.00973242]
[1763944871047,0.00299,87148.0,87147.0,0.00973242]
[1763944871643,0.00299,87148.0,87147.0,0.01073242]
[1763944871844,0.00299,87148.0,87147.0,0.00973242]
[1763944872300,0.07615,87148.0,87147.0,0.00973242]
[1763944872499,0.07615,87148.0,87142.0,0.00973242]
[1763944872702,0.00073,87143.0,87142.0,0.00973242]
[1763944873334,0.07532,87143.0,87142.0,0.00973242]
[1763944874019,0.323,87151.0,87142.0,0.00973242]
[1763944874222,0.2472,87152.0,87142.0,0.04847]
[1763944874438,0.5799502,87152.0,87151.0,0.00973242]
[1763944874634,0.2472,87152.0,87151.0,0.00973242]
[1763944875424,0.24948,87152.0,87151.0,0.00973242]
[1763944876027,0.2472,87152.0,87151.0,0.00973242]
[1763944876433,0.57319,87152.0,87151.0,0.00973242]
[1763944876631,0.64635,87152.0,87151.0,0.00973242]
[1763944876918,0.323,87151.0,87138.0,0.03613]
[1763944877123,0.323,87149.0,87145.0,0.00973242]
[1763944877613,0.323,87149.0,87148.0,0.00973242]
[1763944878031,0.36459854,87149.0,87148.0,0.00973242]
[1763944878238,0.04159854,87149.0,87148.0,0.00973242]
[1763944878402,0.04159854,87149.0,87137.0,0.03613]
[1763944878403,0.02619854,87149.0,87137.0,0.03613]
[1763944878605,0.34879,87149.0,87130.0,0.07412]
[1763944878817,0.00025142,87144.0,87143.0,0.00973242]
[1763944879616,0.10014142,87144.0,87112.0,0.07412]
[1763944879817,0.01894,87143.0,87139.0,0.00973242]
[1763944880015,0.09256,87143.0,87139.0,0.00973242]
[1763944880364,0.00074,87140.0,87139.0,0.00973242]
[1763944882520,0.01894,87143.0,87137.0,0.03613]
[1763944882720,0.00025142,87144.0,87143.0,0.00973242]
[1763944883780,0.00025142,87144.0,87143.0,0.13232242]
[1763944883980,0.00025142,87144.0,87143.0,0.00973242]
[1763944884184,0.00025142,87144.0,87143.0,0.01073242]
[1763944884599,0.00025142,87144.0,87143.0,0.00973242]
[1763944884803,0.00025142,87144.0,87143.0,0.01073242]
[1763944885407,0.00025142,87144.0,87143.0,0.05920242]
[1763944885610,0.00025142,87144.0,87143.0,0.13332242]
[1763944886770,0.00025142,87144.0,87143.0,0.13232242]
[1763944886962,0.00025142,87144.0,87143.0,0.13332242]
[1763944887768,0.00025142,87144.0,87143.0,0.13232242]
[1763944888109,0.00025142,87144.0,87143.0,0.13332242]
[1763944890831,0.3327502,87170.0,87168.0,0.00973242]
[1763944891060,0.01800872,87177.0,87168.0,0.00981377]
[1763944891061,2.0,87176.0,87168.0,0.00981377]
[1763944891269,0.01489887,87170.0,87168.0,8.135e-05]
[1763944891477,0.0002,87180.0,87168.0,8.135e-05]
[1763944891478,0.3329502,87180.0,87168.0,8.135e-05]
[1763944891681,0.3329502,87180.0,87179.0,0.00973242]
[1763944891955,0.0002,87180.0,87179.0,0.00973242]
[1763944892196,0.00133089,87180.0,87179.0,0.00973242]
[1763944892788,0.04497317,87180.0,87168.0,8.135e-05]
[1763944892989,0.3327502,87178.0,87174.0,0.00973242]
[1763944893190,0.05728,87180.0,87174.0,0.00973242]
[1763944893349,0.02874,87180.0,87174.0,0.00973242]
[1763944893545,0.02854,87175.0,87174.0,0.00973242]
[1763944893746,0.02854,87175.0,87168.0,8.135e-05]
[1763944893747,0.02854,87175.0,87169.0,0.00973242]
[1763944894671,0.05499207,87180.0,87168.0,8.135e-05]
[1763944894672,0.02854,87170.0,87168.0,8.135e-05]
[1763944894871,0.02854,87169.0,87168.0,8.135e-05]
[1763944895422,0.05708,87169.0,87168.0,8.135e-05]
[1763944896615,0.02854,87169.0,87168.0,8.135e-05]
[1763944896821,0.02854,87169.0,87168.0,0.00981377]
[1763944897447,0.339434,87169.0,87168.0,8.135e-05]
[1763944897650,0.0114746,87149.0,87143.0,0.00973242]
[1763944897852,0.02854,87144.0,87143.0,0.00039548]
[1763944899529,0.11811186,87151.0,87143.0,0.00039548]
[1763944899746,0.323,87152.0,87147.0,0.00973242]
[1763944899911,0.2472,87169.0,87143.0,0.00039548]
[1763944899912,0.3327502,87160.0,87159.0,0.00973242]
[1763944900077,0.323,87165.0,87155.0,0.00973242]
[1763944900276,0.11811186,87166.0,87152.0,0.00973242]
[1763944900277,0.01147354,87157.0,87152.0,0.00973242]
[1763944900486,0.323,87156.0,87147.0,0.00973242]
[1763944900697,0.0114742,87152.0,87143.0,0.00039548]
[1763944900925,0.02854,87144.0,87143.0,0.00039548]
[1763944901378,0.05708,87144.0,87143.0,0.00039548]
[1763944901857,0.02854,87144.0,87143.0,0.00039548]
[1763944902486,0.323,87152.0,87151.0,0.00973242]
[1763944902641,2.0,87159.0,87151.0,0.00973242]
[1763944903150,0.02854,87152.0,87151.0,0.00973242]
[1763944903358,0.02854,87152.0,87143.0,0.00039548]
[1763944903611,0.35154,87152.0,87147.0,0.00973242]
[1763944903813,0.35154,87152.0,87143.0,0.00039548]
[1763944904144,0.35154,87152.0,87144.0,0.00973242]
[1763944904802,0.02683,87145.0,87144.0,0.00973242]
[1763944905011,0.32325139,87152.0,87144.0,0.00973242]
[1763944905299,0.32325139,87152.0,87145.0,0.00973242]
[1763944905531,0.00025139,87152.0,87143.0,0.00039548]
[1763944905767,0.00025139,87152.0,87151.0,0.00973242]
[1763944906702,0.06538559,87152.0,87143.0,0.00039548]
[1763944906979,0.02683,87144.0,87143.0,0.00039548]
[1763944907436,0.323,87145.0,87143.0,0.00039548]
[1763944907647,0.323,87145.0,87144.0,0.00973242]
[1763944908379,0.02683,87145.0,87144.0,0.00973242]
[1763944909318,0.02683,87145.0,87143.0,0.00039548]
[1763944909564,0.02683,87145.0,87118.0,0.00973242]
[1763944909565,0.323,87124.0,87118.0,0.00973242]
[1763944909777,0.01147907,87115.0,87112.0,0.00973242]
[1763944909979,0.02683,87104.0,87100.0,0.00973242]
[1763944910128,0.323,87107.0,87100.0,0.00973242]
[1763944910534,0.323,87107.0,87106.0,0.00973242]
[1763944911320,0.323,87115.0,87097.0,0.09816]
[1763944911524,0.323,87109.0,87108.0,0.00973242]
[1763944912410,0.37666,87109.0,87088.0,0.03297]
[1763944912614,0.02683,87098.0,87097.0,0.00973242]
[1763944914220,0.06825255,87098.0,87089.0,0.00973242]
[1763944914355,0.05290386,87098.0,87089.0,0.00973242]
[1763944914599,0.02683,87090.0,87089.0,0.00973242]
[1763944915236,0.03831237,87090.0,87069.0,0.02297028]
[1763944915437,0.03831237,87090.0,87084.0,0.00973242]
[1763944915637,0.36131237,87090.0,87079.0,0.00973242]
[1763944915839,0.323,87088.0,87079.0,0.00973242]
[1763944916041,0.33448263,87088.0,87079.0,0.00973242]
[1763944916298,0.323,87084.0,87079.0,0.00973242]
[1763944916429,0.03831369,87080.0,87077.0,0.00973242]
[1763944916628,0.02683,87080.0,87073.0,0.00973242]
[1763944916828,0.33448342,87082.0,87073.0,0.00973242]
[1763944916829,0.323,87082.0,87073.0,0.00973242]
[1763944917029,0.323,87082.0,87081.0,0.00973242]
[1763944917454,0.05366,87082.0,87073.0,0.00973242]
[1763944917970,0.04577,87074.0,87073.0,0.00973242]
[1763944918810,0.04577,87074.0,87060.0,0.0004]
[1763944918811,0.01148369,87080.0,87060.0,0.0004]
[1763944919011,0.3327502,87070.0,87067.0,0.00973242]
[1763944919222,0.01148488,87071.0,87060.0,0.0004]
[1763944919455,0.3327502,87077.0,87062.0,0.00973242]
[1763944919636,0.3327502,87070.0,87062.0,0.00973242]
[1763944919855,0.00039504,87090.0,87060.0,0.0004]
[1763944920040,2.0,87089.0,87081.0,0.00973242]
[1763944920620,0.11811186,87084.0,87081.0,0.00973242]
[1763944920835,0.323,87083.0,87081.0,0.00973242]
[1763944921009,0.323,87083.0,87082.0,0.00973242]
[1763944921638,0.22965938,87086.0,87082.0,0.00973242]
[1763944921796,0.323,87089.0,87078.0,0.00973242]
[1763944922259,0.58034524,87090.0,87087.0,0.00973242]
[1763944922464,0.24759504,87090.0,87087.0,0.00973242]
[1763944922682,0.323,87089.0,87087.0,0.00973242]
[1763944923325,0.3344825,87089.0,87073.0,0.03297]
[1763944923536,0.323,87089.0,87073.0,0.03297]
[1763944923741,0.323,87089.0,87085.0,0.00973242]
[1763944924800,0.323,87087.0,87085.0,0.00973242]
[1763944925026,0.01148303,87085.0,87073.0,0.03297]
[1763944925267,0.323,87089.0,87060.0,0.0004]
[1763944925268,0.01148408,87077.0,87060.0,0.0004]
[1763944925475,0.323,87073.0,87067.0,0.00973242]
[1763944925892,0.01148488,87071.0,87065.0,0.00973242]
[1763944926105,0.323,87073.0,87065.0,0.00973242]
[1763944926297,0.01148488,87071.0,87065.0,0.00973242]
[1763944926506,0.323,87073.0,87060.0,0.0004]
[1763944926507,0.01148527,87068.0,87060.0,0.01013242]
[1763944926782,0.01148514,87069.0,87060.0,0.01013242]
[1763944926980,0.22972255,87062.0,87060.0,0.0004]
[1763944927180,0.33448593,87063.0,87060.0,0.0004]
[1763944927399,0.323,87063.0,87060.0,0.0004]
[1763944927592,0.56420571,87063.0,87060.0,0.0004]
[1763944927794,0.323,87063.0,87060.0,0.0004]
[1763944928120,0.00039479,87063.0,87062.0,0.00973242]
[1763944929356,0.17534719,87067.0,87062.0,0.00973242]
[1763944929551,0.11811186,87068.0,87062.0,0.00981382]
[1763944930060,0.11795582,87068.0,87062.0,8.14e-05]
[1763944930558,0.2472,87067.0,87062.0,8.14e-05]